Workbook

Sheet Sheet1
B1: The Tribonacci Sequence
B2: and the Ratio of Successive Terms
B4: This graphing utility lets you investigate the
B5: Tribonacci Sequence {T0, T1, T2, T3, …}
B6: where each term is the sum of the previous three
B7: as well as the ratio x of the successive terms
A10: What is the first term T0 (from 1 to 5)?
C11: =D11 -> 2 | D11: 2 | E11: =D11+10 -> 12
A13: What is the second term T1 (from 1 to 5)?
C14: =D14 -> 4 | D14: 4 | E14: =D14+10 -> 14
K15: The first | M15: =xMax -> 20 | N15: terms of the Tribonacci Sequence
A16: What is the third term T2 (from 1 to 5)?
C17: =D17 -> 2 | D17: 2 | E17: =D17+10 -> 12 | K17: Which term (2 - 20) do you want displayed?
M18: =N18 -> 19 | N18: 19 | O18: =N18+10 -> 29
K19: That term = | N19: =LOOKUP(N,Sheet2!A3:A27,Sheet2!B3:B25) -> 68370 | O19: =" = " & TEXT(Sheet2!M14,"#######") &" + " & TEXT(Sheet2!J21,"#######")&" + " & TEXT(Sheet2!J18,"#######") -> = 10988 + 20210 + 37172
A20: How many terms do you want to see (10 - 200)?
C21: =D21*10 -> 20 | D21: 2 | E21: =D21+10 -> 12
A24: Click each item below for suggestions and investigations
B25: Item 1
B26: Item 2
B27: Item 3
B28: Item 4
A31: To access/download all the DIGMath Apps for College Algebra/Precalculus
A32: Click this link: | C32: DIGMath Modules for College Algebra and Precalculus
A34: Created by: Sheldon P. Gordon & Florence S. Gordon
A35: Farmingdale State College NYIT
A36: Development of this module was supported by the
A37: NSF's Division of Undergraduate Education
A38: under grants DUE-0310123 and DUE-0442160.
J40: The ratios of the first | M40: =xMax -> 20 | N40: terms approach x = | P40: =LastSum -> 1.83928685

Sheet Sheet2
A1: k | B1: Lk | C1: ratio | D1: plot k's | E1: plot T's | F1: plot ratios | G1: Errors
A3: 1 | B3: =a0 -> 2 | C3: =B4/B3 -> 2 | D3: =A3 -> 1 | E3: =B3 -> 2 | F3: =C3 -> 2 | G3: =F3-phi -> 0.3819660113
A4: =A3+1 -> 2 | B4: =b0 -> 4 | C4: =B5/B4 -> 0.5 | D4: =D3+1 -> 2 | E4: =B4 -> 4 | F4: =C4 -> 0.5 | G4: -1.118033989 | I4: a last = | J4: =LOOKUP(xMax,A3:A200,C3:C200) -> 1.83928685
A5: =A4+1 -> 3 | B5: =c0 -> 2 | C5: 4 | D5: =D4+1 -> 3 | E5: 2 | F5: 4 | G5: 2.381966011
A6: 4 | B6: =B3+B4+B5 -> 8 | C6: 1.75 | D6: 4 | E6: 8 | F6: 1.75 | G6: 0.1319660113 | I6: Fmax = | J6: =LOOKUP(xMax,A3:A203,B3:B203) -> 125752 | L6: xmax= | M6: =xMax -> 20
A7: 5 | B7: =B4+B5+B6 -> 14 | C7: 1.714285714 | D7: 5 | E7: 14 | F7: 1.714285714 | G7: 0.09625172554 | I7: last sum= | J7: =LOOKUP(xMax,A3:A203,C3:C203) -> 1.83928685 | L7: N = | M7: =N -> 19
A8: 6 | B8: 24 | C8: 1.916666667 | D8: 6 | E8: =IF(A8<=xMax,B8,FMax) -> 24 | F8: 1.916666667 | G8: 0.2986326779 | L8: phi = | M8: =(1+SQRT(5))/2 -> 1.618033989
A9: 7 | B9: 46 | C9: 1.826086957 | D9: =IF(A9<=xMax,A9,xMax) -> 7 | E9: 46 | F9: 1.826086957 | G9: 0.2080529678 | I9: =N -> 19 | J9: 0
A10: 8 | B10: 84 | C10: 1.833333333 | D10: 8 | E10: 84 | F10: =IF(A10<=xMax,C10,lastA) -> 1.833333333 | G10: 0.2152993446 | I10: =I9 -> 19 | J10: =M14 -> 10988 | K10: =J10-J9 -> 10988
A11: 9 | B11: 154 | C11: 1.844155844 | D11: 9 | E11: 154 | F11: 1.844155844 | G11: 0.2261218554 | I11: =N -> 19 | J11: =LOOKUP(N-2,A3:A23,B3:B23)+J10 -> 31198 | K11: =J11-J10 -> 20210 | L11: Nth term | M11: =LOOKUP(N,A3:A22,B3:B22) -> 68370
A12: 10 | B12: 284 | C12: 1.838028169 | D12: 10 | E12: 284 | F12: 1.838028169 | G12: 0.2199941803 | I12: =I11 -> 19 | J12: =LOOKUP(N-1,A3:A23,B3:B23)+J11 -> 68370 | K12: 37172 | L12: N-1 term | M12: =LOOKUP(N-1,A3:A22,B3:B22) -> 37172
A13: 11 | B13: 522 | C13: 1.83908046 | D13: 11 | E13: 522 | F13: 1.83908046 | G13: 0.221046471 | I13: =I12 -> 19 | J13: =LOOKUP(N,A3:A23,B3:B23) -> 68370 | K13: 0 | L13: N-2 term | M13: =LOOKUP(N-2,A3:A22,B3:B22) -> 20210
A14: 12 | B14: 960 | C14: 1.839583333 | D14: 12 | E14: 960 | F14: =IF(A14<=xMax,C14,lastA) -> 1.839583333 | G14: 0.2215493446 | L14: N-3 term | M14: =LOOKUP(N-3,A3:A22,B3:B22) -> 10988
A15: 13 | B15: 1766 | C15: 1.839184598 | D15: 13 | E15: 1766 | F15: 1.839184598 | G15: 0.2211506092
A16: 14 | B16: 3248 | C16: 1.839285714 | D16: 14 | E16: 3248 | F16: 1.839285714 | G16: 0.2212517255
A17: 15 | B17: 5974 | C17: 1.839303649 | D17: 15 | E17: 5974 | F17: 1.839303649 | G17: 0.2212696604 | I17: =N-1 -> 18 | J17: 0
A18: 16 | B18: 10988 | C18: 1.839279214 | D18: 16 | E18: 10988 | F18: 1.839279214 | G18: 0.2212452249 | I18: =I17 -> 18 | J18: =LOOKUP(N-1,A3:A23,B3:B23) -> 37172
A19: 17 | B19: 20210 | C19: 1.839287481 | D19: 17 | E19: 20210 | F19: 1.839287481 | G19: 0.2212534927
A20: 18 | B20: 37172 | C20: 1.839287636 | D20: 18 | E20: 37172 | F20: 1.839287636 | G20: 0.2212536471 | I20: =N-2 -> 17 | J20: 0
A21: 19 | B21: 68370 | C21: 1.839286237 | D21: 19 | E21: 68370 | F21: 1.839286237 | G21: 0.2212522479 | I21: =I20 -> 17 | J21: =LOOKUP(N-2,A3:A23,B3:B23) -> 20210
A22: 20 | B22: 125752 | C22: 1.83928685 | D22: 20 | E22: 125752 | F22: 1.83928685 | G22: 0.2212528616
A23: 21 | B23: 231294 | C23: 1.839286795 | D23: 20 | E23: 125752 | F23: 1.83928685 | G23: 0.2212528616 | I23: =N-3 -> 16 | J23: 0
A24: 22 | B24: 425416 | C24: 1.839286722 | D24: 20 | E24: 125752 | F24: 1.83928685 | G24: 0.2212528616 | I24: =I23 -> 16 | J24: =M14 -> 10988
A25: 23 | B25: 782462 | C25: 1.839286764 | D25: 20 | E25: 125752 | F25: 1.83928685 | G25: 0.2212528616
A26: 24 | B26: 1439172 | C26: 1.839286757 | D26: 20 | E26: 125752 | F26: 1.83928685 | G26: 0.2212528616
A27: 25 | B27: 2647050 | C27: 1.839286753 | D27: 20 | E27: 125752 | F27: 1.83928685 | G27: 0.2212528616
A28: 26 | B28: 4868684 | C28: 1.839286756 | D28: 20 | E28: 125752 | F28: 1.83928685 | G28: 0.2212528616
A29: 27 | B29: 8954906 | C29: 1.839286755 | D29: 20 | E29: 125752 | F29: 1.83928685 | G29: 0.2212528616
A30: 28 | B30: 16470640 | C30: 1.839286755 | D30: 20 | E30: 125752 | F30: 1.83928685 | G30: 0.2212528616
A31: 29 | B31: 30294230 | C31: 1.839286755 | D31: 20 | E31: 125752 | F31: 1.83928685 | G31: 0.2212528616
A32: 30 | B32: 55719776 | C32: 1.839286755 | D32: 20 | E32: 125752 | F32: 1.83928685 | G32: 0.2212528616
A33: 31 | B33: 102484646 | C33: 1.839286755 | D33: 20 | E33: 125752 | F33: 1.83928685 | G33: 0.2212528616
A34: 32 | B34: 188498652 | C34: 1.839286755 | D34: 20 | E34: 125752 | F34: 1.83928685 | G34: 0.2212528616
A35: 33 | B35: 346703074 | C35: 1.839286755 | D35: 20 | E35: 125752 | F35: 1.83928685 | G35: =F35-phi -> 0.2212528616
A36: 34 | B36: 637686372 | C36: 1.839286755 | D36: 20 | E36: 125752 | F36: 1.83928685 | G36: 0.2212528616
A37: 35 | B37: 1172888098 | C37: 1.839286755 | D37: 20 | E37: 125752 | F37: 1.83928685 | G37: 0.2212528616
A38: 36 | B38: 2157277544 | C38: 1.839286755 | D38: 20 | E38: 125752 | F38: 1.83928685 | G38: 0.2212528616
A39: 37 | B39: 3967852014 | C39: 1.839286755 | D39: 20 | E39: 125752 | F39: 1.83928685 | G39: 0.2212528616
A40: 38 | B40: 7298017656 | C40: 1.839286755 | D40: 20 | E40: =IF(A40<=xMax,B40,FMax) -> 125752 | F40: 1.83928685 | G40: 0.2212528616
A41: 39 | B41: 13423147214 | C41: 1.839286755 | D41: =IF(A41<=xMax,A41,xMax) -> 20 | E41: 125752 | F41: 1.83928685 | G41: 0.2212528616
A42: 40 | B42: 24689016884 | C42: 1.839286755 | D42: 20 | E42: 125752 | F42: 1.83928685 | G42: 0.2212528616
A43: 41 | B43: 45410181754 | C43: 1.839286755 | D43: 20 | E43: 125752 | F43: 1.83928685 | G43: 0.2212528616
A44: 42 | B44: 83522345852 | C44: 1.839286755 | D44: 20 | E44: 125752 | F44: 1.83928685 | G44: 0.2212528616
A45: 43 | B45: 153621544490 | C45: 1.839286755 | D45: 20 | E45: 125752 | F45: =IF(A45<=xMax,C45,lastA) -> 1.83928685 | G45: 0.2212528616
A46: 44 | B46: 282554072096 | C46: 1.839286755 | D46: 20 | E46: 125752 | F46: 1.83928685 | G46: 0.2212528616
A47: 45 | B47: 519697962438 | C47: 1.839286755 | D47: 20 | E47: 125752 | F47: 1.83928685 | G47: 0.2212528616
A48: 46 | B48: 955873579024 | C48: 1.839286755 | D48: 20 | E48: 125752 | F48: 1.83928685 | G48: 0.2212528616
A49: 47 | B49: 1758125613558 | C49: 1.839286755 | D49: 20 | E49: 125752 | F49: 1.83928685 | G49: 0.2212528616
A50: 48 | B50: 3233697155020 | C50: 1.839286755 | D50: 20 | E50: 125752 | F50: 1.83928685 | G50: 0.2212528616
A51: 49 | B51: 5947696347602 | C51: 1.839286755 | D51: 20 | E51: 125752 | F51: 1.83928685 | G51: 0.2212528616
A52: 50 | B52: 10939519116180 | C52: 1.839286755 | D52: 20 | E52: 125752 | F52: 1.83928685 | G52: 0.2212528616
A53: 51 | B53: 20120912618802 | C53: 1.839286755 | D53: 20 | E53: 125752 | F53: 1.83928685 | G53: 0.2212528616
A54: 52 | B54: 37008128082584 | C54: 1.839286755 | D54: 20 | E54: 125752 | F54: 1.83928685 | G54: 0.2212528616
A55: 53 | B55: 68068559817566 | C55: 1.839286755 | D55: 20 | E55: 125752 | F55: 1.83928685 | G55: 0.2212528616
A56: 54 | B56: 125197600518952 | C56: 1.839286755 | D56: 20 | E56: 125752 | F56: 1.83928685 | G56: 0.2212528616
A57: 55 | B57: 230274288419102 | C57: 1.839286755 | D57: 20 | E57: 125752 | F57: 1.83928685 | G57: 0.2212528616
A58: 56 | B58: 423540448755620 | C58: 1.839286755 | D58: 20 | E58: 125752 | F58: 1.83928685 | G58: 0.2212528616
A59: 57 | B59: 779012337693674 | C59: 1.839286755 | D59: 20 | E59: 125752 | F59: 1.83928685 | G59: 0.2212528616
A60: 58 | B60: 1432827074868396 | C60: 1.839286755 | D60: 20 | E60: 125752 | F60: 1.83928685 | G60: 0.2212528616
A61: 59 | B61: 2635379861317690 | C61: 1.839286755 | D61: 20 | E61: 125752 | F61: 1.83928685 | G61: 0.2212528616
A62: 60 | B62: 4847219273879760 | C62: 1.839286755 | D62: 20 | E62: 125752 | F62: 1.83928685 | G62: 0.2212528616
A63: 61 | B63: 8915426210065846 | C63: 1.839286755 | D63: 20 | E63: 125752 | F63: 1.83928685 | G63: 0.2212528616
A64: 62 | B64: 1.639802535e+16 | C64: 1.839286755 | D64: 20 | E64: 125752 | F64: 1.83928685 | G64: 0.2212528616
A65: 63 | B65: 3.016067083e+16 | C65: 1.839286755 | D65: 20 | E65: 125752 | F65: 1.83928685 | G65: 0.2212528616
A66: 64 | B66: 5.547412238e+16 | C66: 1.839286755 | D66: 20 | E66: 125752 | F66: 1.83928685 | G66: 0.2212528616
A67: 65 | B67: 1.020328186e+17 | C67: 1.839286755 | D67: 20 | E67: 125752 | F67: 1.83928685 | G67: =F67-phi -> 0.2212528616
A68: 66 | B68: 1.876676118e+17 | C68: =B69/B68 -> 1.839286755 | D68: 20 | E68: 125752 | F68: 1.83928685 | G68: 0.2212528616
A69: =A68+1 -> 67 | B69: 3.451745527e+17 | C69: 1.839286755 | D69: 20 | E69: 125752 | F69: 1.83928685 | G69: 0.2212528616
A70: 68 | B70: 6.34874983e+17 | C70: 1.839286755 | D70: 20 | E70: 125752 | F70: 1.83928685 | G70: 0.2212528616
A71: 69 | B71: =B68+B69+B70 -> 1.167717148e+18 | C71: 1.839286755 | D71: 20 | E71: 125752 | F71: 1.83928685 | G71: 0.2212528616
A72: 70 | B72: 2.147766683e+18 | C72: 1.839286755 | D72: 20 | E72: =IF(A72<=xMax,B72,FMax) -> 125752 | F72: 1.83928685 | G72: 0.2212528616
A73: 71 | B73: 3.950358814e+18 | C73: 1.839286755 | D73: =IF(A73<=xMax,A73,xMax) -> 20 | E73: 125752 | F73: 1.83928685 | G73: 0.2212528616
A74: 72 | B74: 7.265842645e+18 | C74: 1.839286755 | D74: 20 | E74: 125752 | F74: 1.83928685 | G74: 0.2212528616
A75: 73 | B75: 1.336396814e+19 | C75: 1.839286755 | D75: 20 | E75: 125752 | F75: 1.83928685 | G75: 0.2212528616
A76: 74 | B76: 2.45801696e+19 | C76: 1.839286755 | D76: 20 | E76: 125752 | F76: 1.83928685 | G76: 0.2212528616
A77: 75 | B77: 4.520998039e+19 | C77: 1.839286755 | D77: 20 | E77: 125752 | F77: =IF(A77<=xMax,C77,lastA) -> 1.83928685 | G77: 0.2212528616
A78: 76 | B78: 8.315411813e+19 | C78: 1.839286755 | D78: 20 | E78: 125752 | F78: 1.83928685 | G78: 0.2212528616
A79: 77 | B79: 1.529442681e+20 | C79: 1.839286755 | D79: 20 | E79: 125752 | F79: 1.83928685 | G79: 0.2212528616
A80: 78 | B80: 2.813083666e+20 | C80: 1.839286755 | D80: 20 | E80: 125752 | F80: 1.83928685 | G80: 0.2212528616
A81: 79 | B81: 5.174067529e+20 | C81: 1.839286755 | D81: 20 | E81: 125752 | F81: 1.83928685 | G81: 0.2212528616
A82: 80 | B82: 9.516593876e+20 | C82: 1.839286755 | D82: 20 | E82: 125752 | F82: 1.83928685 | G82: 0.2212528616
A83: 81 | B83: 1.750374507e+21 | C83: 1.839286755 | D83: 20 | E83: 125752 | F83: 1.83928685 | G83: 0.2212528616
A84: 82 | B84: 3.219440648e+21 | C84: 1.839286755 | D84: 20 | E84: 125752 | F84: 1.83928685 | G84: 0.2212528616
A85: 83 | B85: 5.921474542e+21 | C85: 1.839286755 | D85: 20 | E85: 125752 | F85: 1.83928685 | G85: 0.2212528616
A86: 84 | B86: 1.08912897e+22 | C86: 1.839286755 | D86: 20 | E86: 125752 | F86: 1.83928685 | G86: 0.2212528616
A87: 85 | B87: 2.003220489e+22 | C87: 1.839286755 | D87: 20 | E87: 125752 | F87: 1.83928685 | G87: 0.2212528616
A88: 86 | B88: 3.684496913e+22 | C88: 1.839286755 | D88: 20 | E88: 125752 | F88: 1.83928685 | G88: 0.2212528616
A89: 87 | B89: 6.776846371e+22 | C89: 1.839286755 | D89: 20 | E89: 125752 | F89: 1.83928685 | G89: 0.2212528616
A90: 88 | B90: 1.246456377e+23 | C90: 1.839286755 | D90: 20 | E90: 125752 | F90: 1.83928685 | G90: 0.2212528616
A91: 89 | B91: 2.292590706e+23 | C91: 1.839286755 | D91: 20 | E91: 125752 | F91: 1.83928685 | G91: 0.2212528616
A92: 90 | B92: 4.21673172e+23 | C92: 1.839286755 | D92: 20 | E92: 125752 | F92: 1.83928685 | G92: 0.2212528616
A93: 91 | B93: 7.755778803e+23 | C93: 1.839286755 | D93: 20 | E93: 125752 | F93: 1.83928685 | G93: 0.2212528616
A94: 92 | B94: 1.426510123e+24 | C94: 1.839286755 | D94: 20 | E94: 125752 | F94: 1.83928685 | G94: 0.2212528616
A95: 93 | B95: 2.623761175e+24 | C95: 1.839286755 | D95: 20 | E95: 125752 | F95: 1.83928685 | G95: 0.2212528616
A96: 94 | B96: 4.825849178e+24 | C96: 1.839286755 | D96: 20 | E96: 125752 | F96: 1.83928685 | G96: 0.2212528616
A97: 95 | B97: 8.876120476e+24 | C97: 1.839286755 | D97: 20 | E97: 125752 | F97: 1.83928685 | G97: 0.2212528616
A98: 96 | B98: 1.632573083e+25 | C98: 1.839286755 | D98: 20 | E98: 125752 | F98: 1.83928685 | G98: 0.2212528616
A99: 97 | B99: 3.002770048e+25 | C99: 1.839286755 | D99: 20 | E99: 125752 | F99: 1.83928685 | G99: =F99-phi -> 0.2212528616
A100: 98 | B100: 5.522955179e+25 | C100: 1.839286755 | D100: 20 | E100: 125752 | F100: 1.83928685 | G100: 0.2212528616
A101: 99 | B101: 1.015829831e+26 | C101: 1.839286755 | D101: 20 | E101: 125752 | F101: 1.83928685 | G101: 0.2212528616
A102: 100 | B102: 1.868402354e+26 | C102: 1.839286755 | D102: 20 | E102: 125752 | F102: 1.83928685 | G102: 0.2212528616
A103: 101 | B103: 3.436527703e+26 | C103: 1.839286755 | D103: 20 | E103: 125752 | F103: 1.83928685 | G103: 0.2212528616
A104: 102 | B104: 6.320759888e+26 | C104: 1.839286755 | D104: 20 | E104: =IF(A104<=xMax,B104,FMax) -> 125752 | F104: 1.83928685 | G104: 0.2212528616
A105: 103 | B105: 1.162568994e+27 | C105: 1.839286755 | D105: =IF(A105<=xMax,A105,xMax) -> 20 | E105: 125752 | F105: 1.83928685 | G105: 0.2212528616
A106: 104 | B106: 2.138297753e+27 | C106: 1.839286755 | D106: 20 | E106: 125752 | F106: 1.83928685 | G106: 0.2212528616
A107: 105 | B107: 3.932942737e+27 | C107: 1.839286755 | D107: 20 | E107: 125752 | F107: 1.83928685 | G107: 0.2212528616
A108: 106 | B108: 7.233809484e+27 | C108: 1.839286755 | D108: 20 | E108: 125752 | F108: 1.83928685 | G108: 0.2212528616
A109: 107 | B109: 1.330504997e+28 | C109: 1.839286755 | D109: 20 | E109: 125752 | F109: =IF(A109<=xMax,C109,lastA) -> 1.83928685 | G109: 0.2212528616
A110: 108 | B110: 2.44718022e+28 | C110: 1.839286755 | D110: 20 | E110: 125752 | F110: 1.83928685 | G110: 0.2212528616
A111: 109 | B111: 4.501066165e+28 | C111: 1.839286755 | D111: 20 | E111: 125752 | F111: 1.83928685 | G111: 0.2212528616
A112: 110 | B112: 8.278751382e+28 | C112: 1.839286755 | D112: 20 | E112: 125752 | F112: 1.83928685 | G112: 0.2212528616
A113: 111 | B113: 1.522699777e+29 | C113: 1.839286755 | D113: 20 | E113: 125752 | F113: 1.83928685 | G113: 0.2212528616
A114: 112 | B114: 2.800681532e+29 | C114: 1.839286755 | D114: 20 | E114: 125752 | F114: 1.83928685 | G114: 0.2212528616
A115: 113 | B115: 5.151256447e+29 | C115: 1.839286755 | D115: 20 | E115: 125752 | F115: 1.83928685 | G115: 0.2212528616
A116: 114 | B116: 9.474637755e+29 | C116: 1.839286755 | D116: 20 | E116: 125752 | F116: 1.83928685 | G116: 0.2212528616
A117: 115 | B117: 1.742657573e+30 | C117: 1.839286755 | D117: 20 | E117: 125752 | F117: 1.83928685 | G117: 0.2212528616
A118: 116 | B118: 3.205246993e+30 | C118: 1.839286755 | D118: 20 | E118: 125752 | F118: 1.83928685 | G118: 0.2212528616
A119: 117 | B119: 5.895368342e+30 | C119: 1.839286755 | D119: 20 | E119: 125752 | F119: 1.83928685 | G119: 0.2212528616
A120: 118 | B120: 1.084327291e+31 | C120: 1.839286755 | D120: 20 | E120: 125752 | F120: 1.83928685 | G120: 0.2212528616
A121: 119 | B121: 1.994388824e+31 | C121: 1.839286755 | D121: 20 | E121: 125752 | F121: 1.83928685 | G121: 0.2212528616
A122: 120 | B122: 3.66825295e+31 | C122: 1.839286755 | D122: 20 | E122: 125752 | F122: 1.83928685 | G122: 0.2212528616
A123: 121 | B123: 6.746969065e+31 | C123: 1.839286755 | D123: 20 | E123: 125752 | F123: 1.83928685 | G123: 0.2212528616
A124: 122 | B124: 1.240961084e+32 | C124: 1.839286755 | D124: 20 | E124: 125752 | F124: 1.83928685 | G124: 0.2212528616
A125: 123 | B125: 2.282483285e+32 | C125: 1.839286755 | D125: 20 | E125: 125752 | F125: 1.83928685 | G125: 0.2212528616
A126: 124 | B126: 4.198141276e+32 | C126: 1.839286755 | D126: 20 | E126: 125752 | F126: 1.83928685 | G126: 0.2212528616
A127: 125 | B127: 7.721585645e+32 | C127: 1.839286755 | D127: 20 | E127: 125752 | F127: 1.83928685 | G127: 0.2212528616
A128: 126 | B128: 1.420221021e+33 | C128: 1.839286755 | D128: 20 | E128: 125752 | F128: 1.83928685 | G128: 0.2212528616
A129: 127 | B129: 2.612193713e+33 | C129: 1.839286755 | D129: 20 | E129: 125752 | F129: 1.83928685 | G129: 0.2212528616
A130: 128 | B130: 4.804573298e+33 | C130: 1.839286755 | D130: 20 | E130: 125752 | F130: 1.83928685 | G130: 0.2212528616
A131: 129 | B131: 8.836988031e+33 | C131: 1.839286755 | D131: 20 | E131: 125752 | F131: 1.83928685 | G131: =F131-phi -> 0.2212528616
A132: 130 | B132: 1.625375504e+34 | C132: =B133/B132 -> 1.839286755 | D132: 20 | E132: 125752 | F132: 1.83928685 | G132: 0.2212528616
A133: =A132+1 -> 131 | B133: 2.989531637e+34 | C133: 1.839286755 | D133: 20 | E133: 125752 | F133: 1.83928685 | G133: 0.2212528616
A134: 132 | B134: 5.498605944e+34 | C134: 1.839286755 | D134: 20 | E134: 125752 | F134: 1.83928685 | G134: 0.2212528616
A135: 133 | B135: =B132+B133+B134 -> 1.011351309e+35 | C135: 1.839286755 | D135: 20 | E135: 125752 | F135: 1.83928685 | G135: 0.2212528616
A136: 134 | B136: 1.860165067e+35 | C136: 1.839286755 | D136: 20 | E136: =IF(A136<=xMax,B136,FMax) -> 125752 | F136: 1.83928685 | G136: 0.2212528616
A137: 135 | B137: 3.42137697e+35 | C137: 1.839286755 | D137: =IF(A137<=xMax,A137,xMax) -> 20 | E137: 125752 | F137: 1.83928685 | G137: 0.2212528616
A138: 136 | B138: 6.292893345e+35 | C138: 1.839286755 | D138: 20 | E138: 125752 | F138: 1.83928685 | G138: 0.2212528616
A139: 137 | B139: 1.157443538e+36 | C139: 1.839286755 | D139: 20 | E139: 125752 | F139: 1.83928685 | G139: 0.2212528616
A140: 138 | B140: 2.12887057e+36 | C140: 1.839286755 | D140: 20 | E140: 125752 | F140: 1.83928685 | G140: 0.2212528616
A141: 139 | B141: 3.915603442e+36 | C141: 1.839286755 | D141: 20 | E141: 125752 | F141: =IF(A141<=xMax,C141,lastA) -> 1.83928685 | G141: 0.2212528616
A142: 140 | B142: 7.20191755e+36 | C142: 1.839286755 | D142: 20 | E142: 125752 | F142: 1.83928685 | G142: 0.2212528616
A143: 141 | B143: 1.324639156e+37 | C143: 1.839286755 | D143: 20 | E143: 125752 | F143: 1.83928685 | G143: 0.2212528616
A144: 142 | B144: 2.436391255e+37 | C144: 1.839286755 | D144: 20 | E144: 125752 | F144: 1.83928685 | G144: 0.2212528616
A145: 143 | B145: 4.481222167e+37 | C145: 1.839286755 | D145: 20 | E145: 125752 | F145: 1.83928685 | G145: 0.2212528616
A146: 144 | B146: 8.242252578e+37 | C146: 1.839286755 | D146: 20 | E146: 125752 | F146: 1.83928685 | G146: 0.2212528616
A147: 145 | B147: 1.5159866e+38 | C147: 1.839286755 | D147: 20 | E147: 125752 | F147: 1.83928685 | G147: 0.2212528616
A148: 146 | B148: 2.788334074e+38 | C148: 1.839286755 | D148: 20 | E148: 125752 | F148: 1.83928685 | G148: 0.2212528616
A149: 147 | B149: 5.128545932e+38 | C149: 1.839286755 | D149: 20 | E149: 125752 | F149: 1.83928685 | G149: 0.2212528616
A150: 148 | B150: 9.432866607e+38 | C150: 1.839286755 | D150: 20 | E150: 125752 | F150: 1.83928685 | G150: 0.2212528616
A151: 149 | B151: 1.734974661e+39 | C151: 1.839286755 | D151: 20 | E151: 125752 | F151: 1.83928685 | G151: 0.2212528616
A152: 150 | B152: 3.191115915e+39 | C152: 1.839286755 | D152: 20 | E152: 125752 | F152: 1.83928685 | G152: 0.2212528616
A153: 151 | B153: 5.869377237e+39 | C153: 1.839286755 | D153: 20 | E153: 125752 | F153: 1.83928685 | G153: 0.2212528616
A154: 152 | B154: 1.079546781e+40 | C154: 1.839286755 | D154: 20 | E154: 125752 | F154: 1.83928685 | G154: 0.2212528616
A155: 153 | B155: 1.985596097e+40 | C155: 1.839286755 | D155: 20 | E155: 125752 | F155: 1.83928685 | G155: 0.2212528616
A156: 154 | B156: 3.652080602e+40 | C156: 1.839286755 | D156: 20 | E156: 125752 | F156: 1.83928685 | G156: 0.2212528616
A157: 155 | B157: 6.71722348e+40 | C157: 1.839286755 | D157: 20 | E157: 125752 | F157: 1.83928685 | G157: 0.2212528616
A158: 156 | B158: 1.235490018e+41 | C158: 1.839286755 | D158: 20 | E158: 125752 | F158: 1.83928685 | G158: 0.2212528616
A159: 157 | B159: 2.272420426e+41 | C159: 1.839286755 | D159: 20 | E159: 125752 | F159: 1.83928685 | G159: 0.2212528616
A160: 158 | B160: 4.179632792e+41 | C160: 1.839286755 | D160: 20 | E160: 125752 | F160: 1.83928685 | G160: 0.2212528616
A161: 159 | B161: 7.687543236e+41 | C161: 1.839286755 | D161: 20 | E161: 125752 | F161: 1.83928685 | G161: 0.2212528616
A162: 160 | B162: 1.413959645e+42 | C162: 1.839286755 | D162: 20 | E162: 125752 | F162: 1.83928685 | G162: 0.2212528616
A163: 161 | B163: 2.600677248e+42 | C163: 1.839286755 | D163: 20 | E163: 125752 | F163: 1.83928685 | G163: =F163-phi -> 0.2212528616
A164: 162 | B164: 4.783391217e+42 | C164: 1.839286755 | D164: 20 | E164: 125752 | F164: 1.83928685 | G164: 0.2212528616
A165: 163 | B165: 8.79802811e+42 | C165: 1.839286755 | D165: 20 | E165: 125752 | F165: 1.83928685 | G165: 0.2212528616
A166: 164 | B166: 1.618209658e+43 | C166: 1.839286755 | D166: 20 | E166: 125752 | F166: 1.83928685 | G166: 0.2212528616
A167: 165 | B167: 2.97635159e+43 | C167: 1.839286755 | D167: 20 | E167: 125752 | F167: 1.83928685 | G167: 0.2212528616
A168: 166 | B168: 5.474364059e+43 | C168: 1.839286755 | D168: 20 | E168: =IF(A168<=xMax,B168,FMax) -> 125752 | F168: 1.83928685 | G168: 0.2212528616
A169: 167 | B169: 1.006892531e+44 | C169: 1.839286755 | D169: =IF(A169<=xMax,A169,xMax) -> 20 | E169: 125752 | F169: 1.83928685 | G169: 0.2212528616
A170: 168 | B170: 1.851964096e+44 | C170: 1.839286755 | D170: 20 | E170: 125752 | F170: 1.83928685 | G170: 0.2212528616
A171: 169 | B171: 3.406293032e+44 | C171: 1.839286755 | D171: 20 | E171: 125752 | F171: 1.83928685 | G171: 0.2212528616
A172: 170 | B172: 6.265149658e+44 | C172: 1.839286755 | D172: 20 | E172: 125752 | F172: 1.83928685 | G172: 0.2212528616
A173: 171 | B173: 1.152340679e+45 | C173: 1.839286755 | D173: 20 | E173: 125752 | F173: =IF(A173<=xMax,C173,lastA) -> 1.83928685 | G173: 0.2212528616
A174: 172 | B174: 2.119484948e+45 | C174: 1.839286755 | D174: 20 | E174: 125752 | F174: 1.83928685 | G174: 0.2212528616
A175: 173 | B175: 3.898340592e+45 | C175: 1.839286755 | D175: 20 | E175: 125752 | F175: 1.83928685 | G175: 0.2212528616
A176: 174 | B176: 7.170166218e+45 | C176: 1.839286755 | D176: 20 | E176: 125752 | F176: 1.83928685 | G176: 0.2212528616
A177: 175 | B177: 1.318799176e+46 | C177: 1.839286755 | D177: 20 | E177: 125752 | F177: 1.83928685 | G177: 0.2212528616
A178: 176 | B178: 2.425649857e+46 | C178: 1.839286755 | D178: 20 | E178: 125752 | F178: 1.83928685 | G178: 0.2212528616
A179: 177 | B179: 4.461465654e+46 | C179: 1.839286755 | D179: 20 | E179: 125752 | F179: 1.83928685 | G179: 0.2212528616
A180: 178 | B180: 8.205914687e+46 | C180: 1.839286755 | D180: 20 | E180: 125752 | F180: 1.83928685 | G180: 0.2212528616
A181: 179 | B181: 1.50930302e+47 | C181: 1.839286755 | D181: 20 | E181: 125752 | F181: 1.83928685 | G181: 0.2212528616
A182: 180 | B182: 2.776041054e+47 | C182: 1.839286755 | D182: 20 | E182: 125752 | F182: 1.83928685 | G182: 0.2212528616
A183: 181 | B183: 5.105935543e+47 | C183: 1.839286755 | D183: 20 | E183: 125752 | F183: 1.83928685 | G183: 0.2212528616
A184: 182 | B184: 9.391279616e+47 | C184: 1.839286755 | D184: 20 | E184: 125752 | F184: 1.83928685 | G184: 0.2212528616
A185: 183 | B185: 1.727325621e+48 | C185: 1.839286755 | D185: 20 | E185: 125752 | F185: 1.83928685 | G185: 0.2212528616
A186: 184 | B186: 3.177047137e+48 | C186: 1.839286755 | D186: 20 | E186: 125752 | F186: 1.83928685 | G186: 0.2212528616
A187: 185 | B187: 5.84350072e+48 | C187: 1.839286755 | D187: 20 | E187: 125752 | F187: 1.83928685 | G187: 0.2212528616
A188: 186 | B188: 1.074787348e+49 | C188: 1.839286755 | D188: 20 | E188: 125752 | F188: 1.83928685 | G188: 0.2212528616
A189: 187 | B189: 1.976842134e+49 | C189: 1.839286755 | D189: 20 | E189: 125752 | F189: 1.83928685 | G189: 0.2212528616
A190: 188 | B190: 3.635979553e+49 | C190: 1.839286755 | D190: 20 | E190: 125752 | F190: 1.83928685 | G190: 0.2212528616
A191: 189 | B191: 6.687609035e+49 | C191: 1.839286755 | D191: 20 | E191: 125752 | F191: 1.83928685 | G191: 0.2212528616
A192: 190 | B192: 1.230043072e+50 | C192: 1.839286755 | D192: 20 | E192: 125752 | F192: 1.83928685 | G192: 0.2212528616
A193: 191 | B193: 2.262401931e+50 | C193: 1.839286755 | D193: 20 | E193: 125752 | F193: 1.83928685 | G193: 0.2212528616
A194: 192 | B194: 4.161205907e+50 | C194: 1.839286755 | D194: 20 | E194: 125752 | F194: 1.83928685 | G194: 0.2212528616
A195: 193 | B195: 7.65365091e+50 | C195: 1.839286755 | D195: 20 | E195: 125752 | F195: 1.83928685 | G195: =F195-phi -> 0.2212528616
A196: 194 | B196: 1.407725875e+51 | C196: =B197/B196 -> 1.839286755 | D196: 20 | E196: 125752 | F196: 1.83928685 | G196: 0.2212528616
A197: =A196+1 -> 195 | B197: 2.589211556e+51 | C197: 1.839286755 | D197: 20 | E197: 125752 | F197: 1.83928685 | G197: 0.2212528616
A198: 196 | B198: 4.762302522e+51 | C198: 1.839286755 | D198: 20 | E198: 125752 | F198: 1.83928685 | G198: 0.2212528616
A199: 197 | B199: =B196+B197+B198 -> 8.759239953e+51 | C199: 1.839286755 | D199: 20 | E199: 125752 | F199: 1.83928685 | G199: 0.2212528616
A200: 198 | B200: 1.611075403e+52 | C200: 1.839286755 | D200: 20 | E200: 125752 | F200: 1.83928685 | G200: 0.2212528616
A201: 199 | B201: 2.963229651e+52 | C201: 1.839286755 | D201: 20 | E201: 125752 | F201: 1.83928685 | G201: 0.2212528616
... 1 more rows

Sheet Sheet3
